fUST/lending_fUST_20250628
["ID","MTS","AMOUNT","RATE_DAILY","PERIOD"]
[368315518,1751113841033,-460.0,0.00019178,2]
[368315519,1751113841042,-460.0,0.00019178,2]
[368315520,1751113841051,-460.0,0.00019178,2]
[368315521,1751113841060,-460.0,0.00019178,2]
[368315522,1751113841070,-460.0,0.00019178,2]
[368315523,1751113841079,-460.0,0.00019178,2]
[368315524,1751113841089,-460.0,0.00019178,2]
[368315525,1751113841098,-460.0,0.00019178,2]
[368315526,1751113841108,-460.0,0.00019178,2]
[368315527,1751113841117,-1496.49,0.00019178,2]
[368315528,1751113841126,-514.25,0.00019178,2]
[368315529,1751113841135,-460.0,0.00019178,2]
[368315530,1751113841145,-460.0,0.00019178,2]
[368315531,1751113841154,-1287.89,0.00019178,2]
[368315532,1751113841163,-460.0,0.00019178,2]
[368315533,1751113841173,-460.0,0.00019178,2]
[368315534,1751113841182,-214.4665094,0.00019178,2]
[368315535,1751113841191,-460.0,0.00019178,2]
[368315536,1751113841200,-1504.01,0.00019178,2]
[368315537,1751113841210,-460.0,0.00019178,2]
[368315538,1751113841219,-460.0,0.00019178,2]
[368315539,1751113841228,-965.07,0.00019178,2]
[368315540,1751113841240,-200.0,0.00019178,10]
[368315541,1751113841249,-1081.41,0.00019178,2]
[368315542,1751113841259,-460.0,0.00019178,2]
[368315543,1751113841268,-460.0,0.00019178,2]
[368315544,1751113841278,-518.05,0.00019178,2]
[368315545,1751113841288,-460.0,0.00019178,2]
[368315546,1751113841297,-460.0,0.00019178,2]
[368315547,1751113841307,-460.0,0.00019178,2]
[368315548,1751113841317,-460.0,0.00019178,2]
[368315549,1751113841328,-460.0,0.00019178,2]
[368315550,1751113841338,-460.0,0.00019178,2]
[368315551,1751113841347,-529.3,0.00019178,2]
[368315552,1751113841357,-460.0,0.00019178,2]
[368315553,1751113841366,-460.0,0.00019178,2]
[368315554,1751113841375,-3233.96,0.00019178,2]
[368315555,1751113841384,-460.0,0.00019178,2]
[368315556,1751113841394,-460.0,0.00019178,2]
[368315557,1751113841404,-460.0,0.00019178,2]
[368315558,1751113841413,-460.0,0.00019178,2]
[368315559,1751113841422,-460.0,0.00019178,2]
[368315560,1751113841431,-460.0,0.00019178,2]
[368315561,1751113841440,-460.0,0.00019178,2]
[368315562,1751113841450,-534.96,0.00019178,2]
[368315563,1751113841461,-460.0,0.00019178,2]
[368315564,1751113841471,-460.0,0.00019178,2]
[368315565,1751113841480,-460.0,0.00019178,2]
[368315566,1751113841489,-460.0,0.00019178,2]
[368315567,1751113841499,-460.0,0.00019178,2]
[368315568,1751113841508,-460.0,0.00019178,2]
[368315569,1751113841517,-884.05,0.00019178,2]
[368315570,1751113841526,-460.0,0.00019178,2]
[368315571,1751113841535,-460.0,0.00019178,2]
[368315572,1751113841545,-876.74,0.00019178,2]
[368315573,1751113841554,-460.0,0.00019178,2]
[368315574,1751113841563,-460.0,0.00019178,2]
[368315575,1751113841572,-460.0,0.00019178,2]
[368315576,1751113841582,-793.43,0.00019178,2]
[368315577,1751113841591,-460.0,0.00019178,2]
[368315578,1751113841600,-1147.58,0.00019178,2]
[368315579,1751113841609,-460.0,0.00019178,2]
[368315580,1751113841619,-460.0,0.00019178,2]
[368315581,1751113841628,-460.0,0.00019178,2]
[368315582,1751113841637,-460.0,0.00019178,2]
[368315583,1751113841647,-1686.67,0.00019178,2]
[368315584,1751113841656,-460.0,0.00019178,2]
[368315585,1751113841666,-460.0,0.00019178,2]
[368315586,1751113841675,-506.82,0.00019178,2]
[368315587,1751113841684,-500.0,0.00019178,2]
[368315588,1751113841694,-190.044887,0.00019178,2]
[368315589,1751113841703,-5000.0,0.00019246,2]
[368315590,1751113841712,-500.0,0.0001934,2]
[368315591,1751113841722,-383.83715636,0.00019352,2]
[368315592,1751113841731,-460.0,0.00019452,2]
[368315593,1751113841740,-460.0,0.00019452,2]
[368315594,1751113841749,-474.47,0.00019452,2]
[368315595,1751113841758,-440.0,0.00019452,2]
[368315596,1751113841767,-460.0,0.00019452,2]
[368315597,1751113841776,-460.0,0.00019452,2]
[368315598,1751113841785,-460.0,0.00019452,2]
[368315599,1751113841795,-460.0,0.00019452,2]
[368315600,1751113841804,-460.0,0.00019452,2]
[368315601,1751113841813,-500.0,0.00019452,2]
[368315602,1751113841823,-460.0,0.00019452,2]
[368315603,1751113841832,-460.0,0.00019452,2]
[368315604,1751113841841,-460.0,0.00019452,2]
[368315605,1751113841851,-599.87652576,0.00019452,2]
[368315606,1751113841861,-540.91616731,0.00019452,2]
[368315607,1751113841870,-460.0,0.00019452,2]
[368315608,1751113841879,-460.0,0.00019452,2]
[368315609,1751113841890,-434.43435421,0.00019452,2]
[368315610,1751113841900,-460.0,0.00019452,2]
[368315611,1751113841911,-460.0,0.00019452,2]
[368315612,1751113841921,-460.0,0.00019452,2]
[368315613,1751113841931,-460.0,0.00019452,2]
[368315614,1751113841940,-460.0,0.00019452,2]
[368315615,1751113841950,-460.0,0.00019452,2]
[368315616,1751113841959,-519.89353784,0.00019452,2]
[368315617,1751113841968,-460.0,0.00019452,2]
[368315618,1751113841978,-460.0,0.00019452,2]
[368315619,1751113841987,-460.0,0.00019452,2]
[368315620,1751113841996,-437.13151554,0.00019452,2]
[368315621,1751113842006,-430.0,0.00019452,2]
[368315622,1751113842015,-460.0,0.00019452,2]
[368315623,1751113842025,-460.0,0.00019452,2]
[368315624,1751113842036,-460.0,0.00019452,2]
[368315625,1751113842047,-354.89810426,0.00019452,2]
[368315626,1751113842057,-460.0,0.00019452,2]
[368315627,1751113842066,-460.0,0.00019452,2]
[368315628,1751113842076,-460.0,0.00019452,2]
[368315629,1751113842085,-460.0,0.00019452,2]
[368315630,1751113842095,-460.0,0.00019452,2]
[368315631,1751113842104,-460.0,0.00019452,2]
[368315632,1751113842113,-500.0,0.00019452,2]
[368315633,1751113842123,-531.42,0.00019452,2]
[368315634,1751113842132,-460.0,0.00019452,2]
[368315635,1751113842143,-460.0,0.00019452,2]
[368315636,1751113842153,-460.0,0.00019452,2]
[368315637,1751113842163,-505.38863357,0.00019452,2]
[368315638,1751113842173,-460.0,0.00019452,2]
[368315639,1751113842183,-460.0,0.00019452,2]
[368315640,1751113842192,-621.93,0.00019452,2]
[368315641,1751113842202,-460.0,0.00019452,2]
[368315642,1751113842211,-460.0,0.00019452,2]
[368315643,1751113842221,-460.0,0.00019452,2]
[368315644,1751113842230,-460.0,0.00019452,2]
[368315645,1751113842240,-460.0,0.00019452,2]
[368315646,1751113842250,-591.31594251,0.00019452,2]
[368315647,1751113842263,-460.0,0.00019452,2]
[368315648,1751113842273,-460.0,0.00019452,2]
[368315649,1751113842282,-460.0,0.00019452,2]
[368315650,1751113842291,-460.0,0.00019452,2]
[368315651,1751113842301,-460.0,0.00019452,2]
[368315652,1751113842311,-1357.73,0.00019452,2]
[368315653,1751113842320,-460.0,0.00019452,2]
[368315654,1751113842330,-460.0,0.00019452,2]
[368315655,1751113842340,-460.0,0.00019452,2]
[368315656,1751113842349,-366.85642596,0.00019452,2]
[368315657,1751113842359,-460.0,0.00019452,2]
[368315658,1751113842368,-460.0,0.00019452,2]
[368315659,1751113842377,-460.0,0.00019452,2]
[368315660,1751113842386,-530.27,0.00019452,2]
[368315661,1751113842395,-605.18924806,0.00019452,2]
[368315662,1751113842404,-460.0,0.00019452,2]
[368315663,1751113842415,-460.0,0.00019452,2]
[368315664,1751113842424,-460.0,0.00019452,2]
[368315665,1751113842434,-460.0,0.00019452,2]
[368315666,1751113842445,-460.0,0.00019452,2]
[368315667,1751113842456,-460.0,0.00019452,2]
[368315668,1751113842466,-1781.31,0.00019452,2]
[368315669,1751113842477,-460.0,0.00019452,2]
[368315670,1751113842487,-460.0,0.00019452,2]
[368315671,1751113842497,-460.0,0.00019452,2]
[368315672,1751113842507,-2128.05,0.00019452,2]
[368315673,1751113842516,-460.0,0.00019452,2]
[368315674,1751113842638,-460.0,0.00019452,2]
[368315675,1751113842648,-463.27920308,0.00019452,2]
[368315676,1751113842658,-460.0,0.00019452,2]
[368315677,1751113842668,-490.69,0.00019452,2]
[368315678,1751113842677,-460.0,0.00019452,2]
[368315679,1751113842686,-646.64,0.00019452,2]
[368315680,1751113842697,-662.77,0.00019452,2]
[368315681,1751113842707,-460.0,0.00019452,2]
[368315682,1751113842716,-460.0,0.00019452,2]
[368315683,1751113842726,-498.27,0.00019452,2]
[368315684,1751113842737,-460.0,0.00019452,2]
[368315685,1751113842747,-460.0,0.00019452,2]
[368315686,1751113842757,-460.0,0.00019452,2]
[368315687,1751113842766,-460.0,0.00019452,2]
[368315688,1751113842776,-460.0,0.00019452,2]
[368315689,1751113842786,-460.0,0.00019452,2]
[368315690,1751113842796,-460.0,0.00019452,2]
[368315691,1751113842806,-460.0,0.00019452,2]
[368315693,1751113842815,-500.0,0.00019452,2]
[368315695,1751113842823,-460.0,0.00019452,2]
[368315696,1751113842832,-460.0,0.00019452,2]
[368315698,1751113842842,-460.0,0.00019452,2]
[368315699,1751113842851,-460.0,0.00019452,2]
[368315700,1751113842860,-460.0,0.00019452,2]
[368315701,1751113842869,-460.0,0.00019452,2]
[368315702,1751113842878,-460.0,0.00019452,2]
[368315703,1751113842888,-460.0,0.00019452,2]
[368315704,1751113842897,-2022.05,0.00019452,2]
[368315705,1751113842907,-1926.56,0.00019452,2]
[368315706,1751113842916,-2108.22,0.00019452,2]
[368315707,1751113842925,-822.42,0.00019452,2]
[368315709,1751113842934,-460.0,0.00019452,2]
[368315710,1751113842943,-460.0,0.00019452,2]
[368315711,1751113842952,-911.57,0.00019452,2]
[368315712,1751113842961,-460.0,0.00019452,2]
[368315713,1751113842971,-588.12711238,0.00019452,2]
[368315714,1751113842980,-2378.24,0.00019452,2]
[368315715,1751113842989,-460.0,0.00019452,2]
[368315716,1751113842998,-460.0,0.00019452,2]
[368315717,1751113843007,-460.0,0.00019452,2]
[368315718,1751113843017,-460.0,0.00019452,2]
[368315719,1751113843027,-1651.1,0.00019452,2]
[368315721,1751113843036,-460.0,0.00019452,2]
[368315722,1751113843045,-460.0,0.00019452,2]
[368315724,1751113843054,-460.0,0.00019452,2]
[368315725,1751113843064,-625.47,0.00019452,2]
[368315726,1751113843073,-3353.92,0.00019452,2]
[368315727,1751113843083,-460.0,0.00019452,2]
[368315728,1751113843092,-460.0,0.00019452,2]
[368315730,1751113843101,-460.0,0.00019452,2]
[368315732,1751113843111,-460.0,0.00019452,2]
[368315733,1751113843120,-460.0,0.00019452,2]
[368315734,1751113843129,-460.0,0.00019452,2]
[368315735,1751113843139,-460.0,0.00019452,2]
[368315736,1751113843149,-1496.49,0.00019452,2]
[368315738,1751113843158,-514.25,0.00019452,2]
[368315739,1751113843168,-1287.89,0.00019452,2]
[368315740,1751113843177,-503.5184965,0.00019452,2]
[368315742,1751113843186,-445.90608744,0.00019452,2]
[368315743,1751113843196,-1504.01,0.00019452,2]
[368315744,1751113843205,-460.0,0.00019452,2]
[368315745,1751113843215,-965.07,0.00019452,2]
[368315746,1751113843224,-1081.41,0.00019452,2]
[368315747,1751113843233,-460.0,0.00019452,2]
[368315748,1751113843242,-518.05,0.00019452,2]
[368315749,1751113843252,-460.0,0.00019452,2]
[368315750,1751113843264,-460.0,0.00019452,2]
[368315751,1751113843274,-460.0,0.00019452,2]
[368315752,1751113843283,-469.61988328,0.00019452,2]
[368315753,1751113843293,-529.3,0.00019452,2]
[368315754,1751113843303,-460.0,0.00019452,2]
[368315755,1751113843312,-460.0,0.00019452,2]
[368315756,1751113843322,-3233.96,0.00019452,2]
[368315757,1751113843331,-460.0,0.00019452,2]
[368315758,1751113843341,-534.96,0.00019452,2]
[368315759,1751113843350,-460.0,0.00019452,2]
[368315760,1751113843360,-884.05,0.00019452,2]
[368315761,1751113843370,-460.0,0.00019452,2]
[368315762,1751113843379,-876.74,0.00019452,2]
[368315763,1751113843388,-793.43,0.00019452,2]
[368315764,1751113843397,-460.0,0.00019452,2]
[368315765,1751113843407,-1147.58,0.00019452,2]
[368315766,1751113843415,-460.0,0.00019452,2]
[368315767,1751113843426,-460.0,0.00019452,2]
[368315768,1751113843436,-1686.67,0.00019452,2]
[368315769,1751113843446,-460.0,0.00019452,2]
[368315770,1751113843457,-506.82,0.00019452,2]
[368315771,1751113843467,-153.0,0.00019479,2]
[368315772,1751113843477,-153.0,0.00019479,2]
[368315773,1751113843487,-153.0,0.00019479,2]
[368315774,1751113843496,-153.0,0.00019479,2]
[368315775,1751113843505,-509.06005233,0.00019563,2]
[368315776,1751113843515,-500.0,0.00019676,2]
[368315777,1751113843525,-500.0,0.000197,2]
[368315778,1751113843534,-500.0,0.000197,2]
[368315779,1751113843545,-181.09163339,0.000197,2]
[368315780,1751113843555,-285.0,0.00019701,2]
[368315781,1751113843564,-500.0,0.00019722,2]
[368315782,1751113843574,-500.0,0.00019722,2]
[368315783,1751113843583,-500.0,0.00019722,2]
[368315784,1751113843594,-460.0,0.00019726,2]
[368315785,1751113843604,-474.47,0.00019726,2]
[368315786,1751113843613,-504.18774716,0.00019726,2]
[368315787,1751113843623,-374.37674352,0.00019726,2]
[368315788,1751113843632,-460.0,0.00019726,2]
[368315789,1751113843641,-460.0,0.00019726,2]
[368315790,1751113843650,-460.0,0.00019726,2]
[368315791,1751113843659,-460.0,0.00019726,2]
[368315792,1751113843669,-460.0,0.00019726,2]
[368315793,1751113843678,-460.0,0.00019726,2]
[368315794,1751113843687,-460.0,0.00019726,2]
[368315795,1751113843696,-460.0,0.00019726,2]
[368315796,1751113843706,-460.0,0.00019726,2]
[368315797,1751113843715,-460.0,0.00019726,2]
[368315798,1751113843724,-460.0,0.00019726,2]
[368315799,1751113843734,-460.0,0.00019726,2]
[368315800,1751113843743,-460.0,0.00019726,2]
[368315801,1751113843752,-460.0,0.00019726,2]
[368315802,1751113843761,-460.0,0.00019726,2]
[368315803,1751113843770,-460.0,0.00019726,2]
[368315804,1751113843779,-587.75,0.00019726,2]
[368315805,1751113843789,-531.42,0.00019726,2]
[368315806,1751113843798,-460.0,0.00019726,2]
[368315807,1751113843807,-460.0,0.00019726,2]
[368315808,1751113843816,-460.0,0.00019726,2]
[368315809,1751113843825,-460.0,0.00019726,2]
[368315810,1751113843835,-621.93,0.00019726,2]
[368315811,1751113843844,-607.38072682,0.00019726,2]
[368315812,1751113843853,-460.0,0.00019726,2]
[368315813,1751113843863,-460.0,0.00019726,2]
[368315814,1751113843872,-460.0,0.00019726,2]
[368315815,1751113843882,-460.0,0.00019726,2]
[368315816,1751113843892,-460.0,0.00019726,2]
[368315817,1751113843901,-460.0,0.00019726,2]
[368315818,1751113843911,-1357.73,0.00019726,2]
[368315819,1751113843920,-460.0,0.00019726,2]
[368315820,1751113843929,-460.0,0.00019726,2]
[368315821,1751113843939,-460.0,0.00019726,2]
[368315822,1751113843948,-460.0,0.00019726,2]
[368315823,1751113843958,-460.0,0.00019726,2]
[368315824,1751113843968,-460.0,0.00019726,2]
[368315825,1751113843977,-530.27,0.00019726,2]
[368315826,1751113843986,-310.0,0.00019726,2]
[368315827,1751113843995,-411.05638163,0.00019726,2]
[368315828,1751113844005,-460.0,0.00019726,2]
[368315829,1751113844014,-460.0,0.00019726,2]
[368315830,1751113844024,-460.0,0.00019726,2]
[368315831,1751113844033,-460.0,0.00019726,2]
[368315832,1751113844042,-1781.31,0.00019726,2]
[368315833,1751113844052,-500.0,0.00019726,2]
[368315834,1751113844061,-460.0,0.00019726,2]
[368315835,1751113844070,-460.0,0.00019726,2]
[368315836,1751113844080,-2128.05,0.00019726,2]
[368315837,1751113844089,-460.0,0.00019726,2]
[368315838,1751113844099,-460.0,0.00019726,2]
[368315839,1751113844108,-460.0,0.00019726,2]
[368315840,1751113844117,-490.69,0.00019726,2]
[368315841,1751113844127,-460.0,0.00019726,2]
[368315842,1751113844136,-646.64,0.00019726,2]
[368315843,1751113844145,-662.77,0.00019726,2]
[368315844,1751113844154,-460.0,0.00019726,2]
[368315845,1751113844163,-460.0,0.00019726,2]
[368315846,1751113844173,-498.27,0.00019726,2]
[368315847,1751113844182,-460.0,0.00019726,2]
[368315848,1751113844191,-460.0,0.00019726,2]
[368315849,1751113844201,-460.0,0.00019726,2]
[368315850,1751113844210,-460.0,0.00019726,2]
[368315851,1751113844220,-460.0,0.00019726,2]
[368315852,1751113844230,-460.0,0.00019726,2]
[368315853,1751113844239,-460.0,0.00019726,2]
[368315854,1751113844248,-460.0,0.00019726,2]
[368315855,1751113844261,-460.0,0.00019726,2]
[368315856,1751113844271,-496.08772095,0.00019726,2]
[368315857,1751113844280,-460.0,0.00019726,2]
[368315858,1751113844290,-460.0,0.00019726,2]
[368315859,1751113844301,-460.0,0.00019726,2]
[368315860,1751113844311,-460.0,0.00019726,2]
[368315861,1751113844322,-514.81,0.00019726,2]
[368315862,1751113844332,-2022.05,0.00019726,2]
[368315863,1751113844342,-1926.56,0.00019726,2]
[368315864,1751113844352,-2108.22,0.00019726,2]
[368315865,1751113844361,-822.42,0.00019726,2]
[368315866,1751113844371,-415.743074,0.00019726,2]
[368315867,1751113844380,-460.0,0.00019726,2]
[368315868,1751113844389,-911.57,0.00019726,2]
[368315869,1751113844399,-460.0,0.00019726,2]
[368315870,1751113844408,-2378.24,0.00019726,2]
[368315871,1751113844418,-460.0,0.00019726,2]
[368315872,1751113844428,-460.0,0.00019726,2]
[368315873,1751113844437,-460.0,0.00019726,2]
[368315874,1751113844446,-460.0,0.00019726,2]
[368315875,1751113844455,-1651.1,0.00019726,2]
[368315876,1751113844465,-460.0,0.00019726,2]
[368315877,1751113844474,-460.0,0.00019726,2]
[368315878,1751113844484,-460.0,0.00019726,2]
[368315879,1751113844493,-625.47,0.00019726,2]
[368315880,1751113844502,-3353.92,0.00019726,2]
[368315881,1751113844512,-460.0,0.00019726,2]
[368315882,1751113844521,-460.0,0.00019726,2]
[368315883,1751113844531,-460.0,0.00019726,2]
[368315884,1751113844540,-187.69660434,0.00019726,2]
[368315885,1751113844550,-460.0,0.00019726,2]
[368315886,1751113844559,-460.0,0.00019726,2]
[368315887,1751113844568,-460.0,0.00019726,2]
[368315888,1751113844577,-1496.49,0.00019726,2]
[368315889,1751113844591,-514.25,0.00019726,2]
[368315890,1751113844600,-1287.89,0.00019726,2]
[368315891,1751113844609,-1504.01,0.00019726,2]
[368315892,1751113844618,-460.0,0.00019726,2]
[368315893,1751113844627,-965.07,0.00019726,2]
[368315894,1751113844637,-1081.41,0.00019726,2]
[368315895,1751113844646,-460.0,0.00019726,2]
[368315896,1751113844655,-518.05,0.00019726,2]
[368315897,1751113844664,-460.0,0.00019726,2]
[368315898,1751113844673,-529.3,0.00019726,2]
[368315899,1751113844683,-460.0,0.00019726,2]
[368315900,1751113844692,-221.57,0.00019726,2]
[368315901,1751113844702,-3233.96,0.00019726,2]
[368315902,1751113844711,-460.0,0.00019726,2]
[368315903,1751113844724,-534.96,0.00019726,2]
[368315904,1751113844734,-460.0,0.00019726,2]
[368315905,1751113844743,-884.05,0.00019726,2]
[368315906,1751113844752,-460.0,0.00019726,2]
[368315907,1751113844761,-876.74,0.00019726,2]
[368315908,1751113844770,-793.43,0.00019726,2]
[368315909,1751113844780,-460.0,0.00019726,2]
[368315910,1751113844789,-1147.58,0.00019726,2]
[368315911,1751113844798,-460.0,0.00019726,2]
[368315912,1751113844808,-460.0,0.00019726,2]
[368315913,1751113844817,-1686.67,0.00019726,2]
[368315914,1751113844826,-506.82,0.00019726,2]
[368315915,1751113844836,-501.53711033,0.00019741,2]
[368315916,1751113844846,-500.0,0.00019741,2]
[368315917,1751113844856,-285.0,0.00019813,2]
[368315918,1751113844865,-420.0,0.00019824,2]
[368315919,1751113844874,-420.0,0.00019824,2]
[368315920,1751113844883,-420.0,0.00019824,2]
[368315921,1751113844893,-1680.0,0.00019825,2]
[368315922,1751113844903,-6069.56233129,0.000199,2]
[368315923,1751113844912,-1680.0,0.00019921,2]
[368315924,1751113844922,-288.66192114,0.00019935,2]
[368315925,1751113844931,-500.0,0.00019935,2]
[368315926,1751113844943,-512.10269403,0.00019935,2]
[368315927,1751113844952,-507.76383046,0.00019935,2]
[368315928,1751113844962,-443.30882593,0.00019935,2]
[368315929,1751113844973,-383.83715632,0.00019968,2]
[368315930,1751113844983,-460.0,0.0002,2]
[368315931,1751113844992,-474.47,0.0002,2]
[368315932,1751113845001,-544.92909081,0.0002,2]
[368315933,1751113845011,-460.0,0.0002,2]
[368315934,1751113845021,-460.0,0.0002,2]
[368315935,1751113845031,-460.0,0.0002,2]
[368315936,1751113845040,-342.51669618,0.0002,2]
[368315937,1751113845050,-460.0,0.0002,2]
[368315938,1751113845059,-460.0,0.0002,2]
[368315939,1751113845067,-460.0,0.0002,2]
[368315940,1751113845077,-300.0,0.0002,2]
[368315941,1751113845086,-460.0,0.0002,2]
[368315942,1751113845095,-460.0,0.0002,2]
[368315943,1751113845105,-460.0,0.0002,2]
[368315944,1751113845114,-531.42,0.0002,2]
[368315945,1751113845123,-460.0,0.0002,2]
[368315946,1751113845133,-460.0,0.0002,2]
[368315947,1751113845142,-460.0,0.0002,2]
[368315948,1751113845152,-460.0,0.0002,2]
[368315949,1751113845161,-621.93,0.0002,2]
[368315950,1751113845171,-460.0,0.0002,2]
[368315951,1751113845180,-460.0,0.0002,2]
[368315952,1751113845190,-460.0,0.0002,2]
[368315953,1751113845199,-460.0,0.0002,2]
[368315954,1751113845208,-460.0,0.0002,2]
[368315955,1751113845218,-460.0,0.0002,2]
[368315956,1751113845227,-1357.73,0.0002,2]
[368315957,1751113845236,-460.0,0.0002,2]
[368315958,1751113845246,-264.53739657,0.0002,2]
[368315959,1751113845258,-460.0,0.0002,2]
[368315960,1751113845267,-460.0,0.0002,2]
[368315961,1751113845277,-460.0,0.0002,2]
[368315962,1751113845286,-530.27,0.0002,2]
[368315963,1751113845295,-460.0,0.0002,2]
[368315964,1751113845305,-460.0,0.0002,2]
[368315965,1751113845314,-460.0,0.0002,2]
[368315966,1751113845323,-166.17,0.0002,2]
[368315967,1751113845335,-1781.31,0.0002,2]
[368315968,1751113845345,-460.0,0.0002,2]
[368315969,1751113845354,-460.0,0.0002,2]
[368315970,1751113845363,-2128.05,0.0002,2]
[368315971,1751113845372,-460.0,0.0002,2]
[368315972,1751113845382,-460.0,0.0002,2]
[368315973,1751113845391,-460.0,0.0002,2]
[368315974,1751113845400,-490.69,0.0002,2]
[368315975,1751113845409,-646.64,0.0002,2]
[368315976,1751113845418,-662.77,0.0002,2]
[368315977,1751113845428,-460.0,0.0002,2]
[368315978,1751113845437,-460.0,0.0002,2]
[368315979,1751113845447,-498.27,0.0002,2]
[368315980,1751113845456,-460.0,0.0002,2]
[368315981,1751113845465,-460.0,0.0002,2]
[368315982,1751113845474,-460.0,0.0002,2]
[368315983,1751113845483,-460.0,0.0002,2]
[368315984,1751113845493,-460.0,0.0002,2]
[368315985,1751113845502,-460.0,0.0002,2]
[368315986,1751113845511,-460.0,0.0002,2]
[368315987,1751113845628,-460.0,0.0002,2]
[368315988,1751113845638,-460.0,0.0002,2]
[368315989,1751113845648,-460.0,0.0002,2]
[368315990,1751113845657,-460.0,0.0002,2]
[368315991,1751113845666,-460.0,0.0002,2]
[368315992,1751113845676,-2022.05,0.0002,2]
[368315993,1751113845685,-1926.56,0.0002,2]
[368315994,1751113845695,-2108.22,0.0002,2]
[368315995,1751113845704,-822.42,0.0002,2]
[368315996,1751113845714,-655.26651717,0.0002,2]
[368315997,1751113845723,-460.0,0.0002,2]
[368315998,1751113845732,-911.57,0.0002,2]
[368315999,1751113845742,-460.0,0.0002,2]
[368316000,1751113845751,-2378.24,0.0002,2]
[368316001,1751113845761,-460.0,0.0002,2]
[368316002,1751113845770,-18803.49168301,0.0002,2]
[368316003,1751113845779,-460.0,0.0002,2]
[368316004,1751113845789,-460.0,0.0002,2]
[368316005,1751113845798,-460.0,0.0002,2]
[368316006,1751113845808,-460.0,0.0002,2]
[368316007,1751113845816,-1651.1,0.0002,2]
[368316008,1751113845826,-460.0,0.0002,2]
[368316009,1751113845836,-460.0,0.0002,2]
[368316010,1751113845846,-625.47,0.0002,2]
[368316011,1751113845857,-3353.92,0.0002,2]
[368316012,1751113845866,-460.0,0.0002,2]
[368316013,1751113845875,-460.0,0.0002,2]
[368316014,1751113845885,-460.0,0.0002,2]
[368316015,1751113845894,-460.0,0.0002,2]
[368316016,1751113845904,-460.0,0.0002,2]
[368316017,1751113845913,-460.0,0.0002,2]
[368316018,1751113845923,-1496.49,0.0002,2]
[368316019,1751113845932,-514.25,0.0002,2]
[368316020,1751113845942,-1287.89,0.0002,2]
[368316021,1751113845952,-1504.01,0.0002,2]
[368316022,1751113845961,-460.0,0.0002,2]
[368316023,1751113845972,-965.07,0.0002,2]
[368316024,1751113845981,-1081.41,0.0002,2]
[368316025,1751113845991,-460.0,0.0002,2]
[368316026,1751113846000,-518.05,0.0002,2]
[368316027,1751113846010,-460.0,0.0002,2]